fUST/lending_fUST_20260317
["ID","MTS","AMOUNT","RATE_DAILY","PERIOD"]
[408470540,1773692872922,-542.83,0.00034893,120]
[408470541,1773692872955,-542.83,0.00034893,120]
[408470542,1773692872989,-542.83,0.00034893,120]
[408470543,1773692873026,-542.83,0.00034893,120]
[408470544,1773692873063,-542.9773381,0.00034893,120]
[408470545,1773692873097,-419.69023694,0.00034893,120]
[408470546,1773692873130,-294.11695335,0.00034893,120]
[408470547,1773692873163,-289.88653167,0.00034893,120]
[408470548,1773692873198,-238.73747336,0.00034893,120]
[408470549,1773692873232,-162.52845427,0.00034893,120]
[408470550,1773692873265,-302.38359183,0.00034893,120]
[408470551,1773692873301,-448.66668824,0.00034893,120]
[408470552,1773692873339,-175.91041671,0.00034893,120]
[408470553,1773692873376,-343.2978317,0.00034893,120]
[408470554,1773692873413,-183.33543843,0.00034893,120]
[408470555,1773692873451,-160.63441353,0.00034893,120]
[408470556,1773692873488,-454.54260069,0.00034893,120]
[408470557,1773692873526,-44793.70117072,0.00034893,120]
[408470558,1773692873563,-152.45238827,0.00034893,120]
[408470559,1773692873598,-1000.0,0.00034893,120]
[408470560,1773692873636,-1000.0,0.00034893,120]
[408470561,1773692873672,-1000.0,0.00034893,120]
[408470562,1773692873710,-1000.0,0.00034893,120]
[408470563,1773692873747,-1000.0,0.00034893,120]
[408470564,1773692873782,-1000.0,0.00034893,120]
[408470565,1773692873818,-1339.53,0.00034893,120]
[408470566,1773692873857,-1339.53,0.00034893,120]
[408470567,1773692873890,-1339.53,0.00034893,120]
[408470568,1773692873927,-1339.53,0.00034893,120]
[408470569,1773692873962,-1339.53,0.00034893,120]
[408470570,1773692873995,-1339.53,0.00034893,120]
[408470571,1773692874030,-1339.53,0.00034893,120]
[408470572,1773692874064,-1339.53,0.00034893,120]
[408470573,1773692874099,-1339.53,0.00034893,120]
[408470574,1773692874132,-1000.0,0.00034893,120]
[408470575,1773692874166,-1339.53,0.00034893,120]
[408470576,1773692874199,-1339.53,0.00034893,120]
[408470577,1773692874232,-1339.53,0.00034893,120]
[408470578,1773692874264,-1339.53,0.00034893,120]
[408470579,1773692874298,-1339.53,0.00034893,120]
[408470580,1773692874331,-1339.53,0.00034893,120]
[408470581,1773692874364,-1339.53,0.00034893,120]
[408470582,1773692874398,-1339.53,0.00034893,120]
[408470583,1773692874433,-1000.0,0.00034893,120]
[408470584,1773692874467,-1339.53,0.00034893,120]
[408470585,1773692874502,-1339.53,0.00034893,120]
[408470586,1773692874540,-1339.53,0.00034893,120]
[408470587,1773692874574,-1339.53,0.00034893,120]
[408470588,1773692874610,-1339.53,0.00034893,120]
[408470589,1773692874644,-1339.53,0.00034893,120]
[408470590,1773692874678,-1339.60763603,0.00034893,120]
[408470591,1773692874710,-1000.0,0.00034893,120]
[408470592,1773692874743,-1011.0,0.00034893,120]
[408470593,1773692874776,-1000.7,0.00034893,120]
[408470594,1773692874808,-5197.93690166,0.00034893,120]
[408470595,1773692874839,-258.0,0.00034893,120]
[408470596,1773692874871,-200.99605502,0.00034893,120]
[408470597,1773692874907,-154.64738633,0.00034893,120]
[408470598,1773692874945,-2256.15,0.00034893,120]
[408470599,1773692874983,-2256.15,0.00034893,120]
[408470600,1773692875021,-2256.15,0.00034893,120]
[408470601,1773692875058,-2256.15,0.00034893,120]
[408470602,1773692875091,-2256.15,0.00034893,120]
[408470603,1773692875124,-2256.15,0.00034893,120]
[408470604,1773692875158,-2256.15,0.00034893,120]
[408470605,1773692875193,-2256.15,0.00034893,120]
[408470606,1773692875228,-2256.15,0.00034893,120]
[408470607,1773692875262,-2256.15,0.00034893,120]
[408470608,1773692875295,-2256.15,0.00034893,120]
[408470609,1773692875328,-2256.15,0.00034893,120]
[408470610,1773692875360,-2256.15,0.00034893,120]
[408470611,1773692875552,-2256.15,0.00034893,120]
[408470612,1773692875604,-2256.15,0.00034893,120]
[408470613,1773692875645,-2256.15,0.00034893,120]
[408470614,1773692875682,-2256.206085,0.00034893,120]
[408470615,1773692875718,-500.0,0.00034893,120]
[408470616,1773692875754,-500.0,0.00034893,120]
[408470617,1773692875787,-500.0,0.00034893,120]
[408470618,1773692875820,-500.0,0.00034893,120]
[408470619,1773692875853,-500.0,0.00034893,120]
[408470620,1773692875886,-500.0,0.00034893,120]
[408470621,1773692875920,-333.24400228,0.00034893,120]
[408470622,1773692875956,-336945.91010402,0.00034893,60]
[408470623,1773692887452,5000.0,0.0001,120]
[408470624,1773692894045,2959.31505054,0.0001,120]
[408470646,1773693031961,-5000.0,6.58e-05,2]
[408470647,1773693031971,-514.0,6.646e-05,2]
[408470648,1773693031981,-290.10115111,6.849e-05,2]
[408470649,1773693031990,-300.0,6.915e-05,2]
[408470650,1773693031999,-1181.0,6.915e-05,2]
[408470651,1773693032009,-300.0,6.916e-05,2]
[408470652,1773693032022,-300.0,6.916e-05,2]
[408470653,1773693032032,-300.0,6.916e-05,2]
[408470654,1773693032042,-300.0,6.916e-05,2]
[408470655,1773693032052,-300.0,6.916e-05,2]
[408470656,1773693032063,-300.0,6.916e-05,2]
[408470657,1773693032073,-300.0,6.916e-05,2]
[408470658,1773693032083,-300.0,6.916e-05,2]
[408470659,1773693032093,-300.0,6.916e-05,2]
[408470660,1773693032103,-300.0,6.916e-05,2]
[408470661,1773693032112,-300.0,6.916e-05,2]
[408470662,1773693032122,-158.65440549,6.916e-05,2]
[408470663,1773693032133,-141.34559451,6.916e-05,2]
[408470664,1773693032143,-300.0,6.916e-05,2]
[408470665,1773693032153,-300.0,6.916e-05,2]
[408470667,1773693032163,-258.65440549,6.916e-05,2]
[408470669,1773693032175,-41.34559451,6.916e-05,2]
[408470671,1773693032185,-599.80953,7.378e-05,2]
[408470673,1773693032194,-420.0,7.607e-05,2]
[408470675,1773693032203,-599.80953,7.688e-05,2]
[408470677,1773693032213,-2150.738,7.984e-05,2]
[408470678,1773693032223,-4319.99212738,7.984e-05,2]
[408470679,1773693032233,-599.80953,7.999e-05,2]
[408470680,1773693032242,-2229.672593,8.268e-05,2]
[408470681,1773693032253,-229.34976077,8.299e-05,2]
[408470682,1773693032262,-335.19632767,8.299e-05,2]
[408470683,1773693032272,-500.0,8.299e-05,2]
[408470684,1773693032282,-215.91646739,8.299e-05,2]
[408470685,1773693032292,-500.0,8.299e-05,2]
[408470686,1773693032302,-500.0,8.299e-05,2]
[408470687,1773693032313,-323.72141682,8.299e-05,2]
[408470688,1773693032323,-500.0,8.299e-05,2]
[408470689,1773693032332,-500.0,8.299e-05,2]
[408470690,1773693032342,-500.0,8.299e-05,2]
[408470691,1773693032351,-181.33950994,8.299e-05,2]
[408470692,1773693032361,-500.0,8.299e-05,2]
[408470693,1773693032370,-500.0,8.299e-05,2]
[408470694,1773693032380,-500.0,8.299e-05,2]
[408470695,1773693032389,-500.0,8.299e-05,2]
[408470696,1773693032399,-500.0,8.299e-05,2]
[408470697,1773693032408,-435.02547001,8.299e-05,2]
[408470698,1773693032417,-500.0,8.299e-05,2]
[408470700,1773693032427,-507.84010343,8.299e-05,2]
[408470701,1773693032437,-500.0,8.299e-05,2]
[408470703,1773693032446,-500.0,8.299e-05,2]
[408470705,1773693032455,-500.0,8.299e-05,2]
[408470707,1773693032465,-8917.75876266,8.3e-05,2]
[408470761,1773693032974,-510.7661048,8.3e-05,2]
[408470817,1773693037880,-2931.83848373,8.3e-05,2]
[408470818,1773693037936,-1322.61187385,8.3e-05,2]
[408470820,1773693043252,-6650.25,8.3e-05,2]
[408470824,1773693045925,-6760.13494021,8.3e-05,2]
[408470864,1773694231973,-5000.0,5.721e-05,2]
[408470866,1773694231984,-1200.0,5.778e-05,2]
[408470867,1773694231995,-5000.0,5.779e-05,2]
[408470868,1773694232005,-503.0,5.779e-05,2]
[408470869,1773694232014,-300.0,6.011e-05,2]
[408470870,1773694232024,-300.0,6.012e-05,2]
[408470872,1773694232034,-300.0,6.012e-05,2]
[408470874,1773694232043,-300.0,6.012e-05,2]
[408470876,1773694232053,-3411.1325955,6.327e-05,2]
[408470878,1773694232063,-1360.0,6.356e-05,2]
[408470881,1773694232072,-300.0,6.453e-05,2]
[408470884,1773694232082,-300.0,6.453e-05,2]
[408470885,1773694232092,-300.0,6.453e-05,2]
[408470886,1773694232101,-300.0,6.453e-05,2]
[408470887,1773694232110,-300.0,6.453e-05,2]
[408470888,1773694232120,-300.0,6.453e-05,2]
[408470889,1773694232134,-300.0,6.453e-05,2]
[408470890,1773694232143,-300.0,6.453e-05,2]
[408470891,1773694232153,-300.0,6.453e-05,2]
[408470892,1773694232162,-300.0,6.453e-05,2]
[408470893,1773694232172,-300.0,6.453e-05,2]
[408470895,1773694232182,-300.0,6.453e-05,2]
[408470897,1773694232191,-300.0,6.453e-05,2]
[408470899,1773694232201,-300.0,6.453e-05,2]
[408470901,1773694232211,-300.0,6.453e-05,2]
[408470903,1773694232221,-600.0,6.581e-05,2]
[408470905,1773694232231,-420.0,6.612e-05,2]
[408470907,1773694232241,-420.0,6.613e-05,2]
[408470910,1773694232252,-301.0,6.613e-05,2]
[408470912,1773694232262,-420.0,6.613e-05,2]
[408470914,1773694232271,-2567.80893878,6.835e-05,2]
[408470916,1773694232284,-156.80756748,6.835e-05,2]
[408470918,1773694232295,-252.03,6.835e-05,2]
[408470920,1773694232306,-6740.60400828,7.135e-05,2]
[408470922,1773694232315,-3948.92842424,7.235e-05,2]
[408470968,1773694238108,-1438.41222765,6.453e-05,2]
[408470969,1773694238118,-3309.35289039,7.235e-05,2]
[408470970,1773694238128,-720.0,7.239e-05,2]
[408470971,1773694238137,-500.0,7.957e-05,2]
[408470972,1773694238147,-500.0,7.957e-05,2]
[408470973,1773694238158,-500.0,7.957e-05,2]
[408470974,1773694238167,-500.0,7.957e-05,2]
[408470976,1773694238176,-500.0,7.957e-05,2]
[408470977,1773694238187,-500.0,7.957e-05,2]
[408470978,1773694238198,-500.0,7.957e-05,2]
[408470979,1773694238208,-237.34930053,7.957e-05,2]
[408470980,1773694238218,-301.79568752,7.957e-05,2]
[408470981,1773694238228,-500.0,7.957e-05,2]
[408470982,1773694238238,-301.56802069,7.957e-05,2]
[408470983,1773694238247,-162.380719,7.958e-05,2]
[408470984,1773694238256,-445.202766,7.958e-05,2]
[408470985,1773694238266,-500.0,7.958e-05,2]
[408470986,1773694238275,-500.0,7.958e-05,2]
[408470987,1773694238285,-500.0,7.958e-05,2]
[408470988,1773694238295,-500.0,7.958e-05,2]
[408470989,1773694238305,-500.0,7.958e-05,2]
[408470990,1773694238315,-500.0,7.958e-05,2]
[408470991,1773694238324,-500.0,7.958e-05,2]
[408470992,1773694238334,-500.0,7.958e-05,2]
[408470993,1773694238343,-500.0,7.958e-05,2]
[408470994,1773694238353,-500.0,7.958e-05,2]
[408470995,1773694238362,-500.0,7.958e-05,2]
[408470996,1773694238371,-500.0,7.958e-05,2]
[408470997,1773694238381,-500.0,7.958e-05,2]
[408470998,1773694238391,-500.0,7.958e-05,2]
[408470999,1773694238400,-500.0,7.958e-05,2]
[408471000,1773694238409,-500.0,7.958e-05,2]
[408471001,1773694238419,-500.0,7.958e-05,2]
[408471002,1773694238428,-2150.738,7.958e-05,2]
[408471003,1773694238437,-537.6845,7.958e-05,2]
[408471004,1773694238446,-864.0,7.963e-05,2]
[408471005,1773694238455,-152.69567802,8e-05,2]
[408471006,1773694238464,-500.0,8.073e-05,2]
[408471007,1773694238473,-500.0,8.073e-05,2]
[408471008,1773694238483,-500.0,8.073e-05,2]
[408471009,1773694238492,-417.86850358,8.073e-05,2]
[408471010,1773694238504,-82.13149642,8.073e-05,2]
[408471011,1773694238514,-500.0,8.073e-05,2]
[408471012,1773694238524,-500.0,8.073e-05,2]
[408471013,1773694238533,-500.0,8.073e-05,2]
[408471014,1773694238542,-400.59337689,8.073e-05,2]
[408471015,1773694238554,-99.40662311,8.073e-05,2]
[408471016,1773694238563,-6903.78990589,8.095e-05,2]
[408471017,1773694238574,-42392.29121897,8.095e-05,2]
[408471028,1773694240572,-294.44602053,8.095e-05,2]
[408471031,1773694240584,-389.9284953,8.095e-05,2]
[408471046,1773694245115,-5000.0,8.014e-05,2]
[408471047,1773694245126,-64326.37820394,8.095e-05,2]
[408471048,1773694245137,-23244.14418867,8.095e-05,2]
[408471068,1773694246150,-34572.42686842,8.095e-05,2]
[408471069,1773694246161,-8280.27041877,8.095e-05,2]
[408471072,1773694644765,144327.25,0.0001,120]
[408471074,1773694771494,341.346475,1.476e-05,2]
[408471075,1773694771692,341.346475,1.538e-05,2]
[408471076,1773694771901,341.346475,1.6e-05,2]
[408471077,1773694772142,341.346475,1.663e-05,2]
[408471078,1773694772619,341.346475,1.725e-05,2]
[408471079,1773694772666,341.346475,1.787e-05,2]
[408471086,1773694824232,-5000.0,2.186e-05,2]
[408471087,1773694824255,-5000.0,2.208e-05,2]
[408471088,1773694824266,-300.0,2.295e-05,2]
[408471089,1773694824275,-268.76063414,2.296e-05,2]
[408471090,1773694936839,8715.6368669,1.333e-05,2]
[408471120,1773695432136,-433.45811007,2.119e-05,2]
[408471213,1773695438328,-4566.54188993,2.119e-05,2]
[408471214,1773695438338,-5000.0,2.14e-05,2]
[408471215,1773695438348,-2999.29,2.3e-05,2]
[408471216,1773695438358,-2097.44,2.3e-05,2]
[408471217,1773695438369,-1964.11,2.3e-05,2]
[408471218,1773695438379,-360.76,2.3e-05,2]
[408471219,1773695438388,-1344.36,2.3e-05,2]
[408471221,1773695438398,-652.77,2.3e-05,2]
[408471222,1773695438407,-2396.36,2.3e-05,2]
[408471223,1773695438417,-970.8,2.3e-05,2]
[408471225,1773695438426,-657.08,2.3e-05,2]
[408471227,1773695438436,-602.48,2.3e-05,2]
[408471228,1773695438446,-427.04,2.3e-05,2]
[408471229,1773695438455,-188.63,2.3e-05,2]
[408471230,1773695438470,-2382.21,2.3e-05,2]
[408471231,1773695438481,-797.90275662,2.3e-05,2]
[408471241,1773695440594,-381.8872065,2.3e-05,2]
[408471242,1773695440647,-530.49760276,2.3e-05,2]
[408471244,1773695440659,-384.96243412,2.3e-05,2]
[408471246,1773695440668,-1952.93,2.3e-05,2]
[408471247,1773695440677,-1011.05,2.3e-05,2]
[408471248,1773695440687,-749.5,2.3e-05,2]
[408471249,1773695440696,-1744.73,2.3e-05,2]
[408471250,1773695440706,-822.66,2.3e-05,2]
[408471251,1773695440715,-800.43,2.3e-05,2]
[408471252,1773695440724,-1286.65,2.3e-05,2]
[408471253,1773695440733,-1288.52,2.3e-05,2]
[408471254,1773695440742,-1289.16,2.3e-05,2]
[408471255,1773695440751,-2964.7,2.3e-05,2]
[408471256,1773695440760,-1079.17,2.3e-05,2]
[408471257,1773695440769,-2390.68,2.3e-05,2]
[408471258,1773695440779,-159.55,2.3e-05,2]
[408471259,1773695440788,-1086.75,2.3e-05,2]
[408471260,1773695440797,-1278.95,2.3e-05,2]
[408471261,1773695440807,-537.06,2.3e-05,2]
[408471262,1773695440816,-1494.96,2.3e-05,2]
[408471263,1773695440826,-2885.24,2.3e-05,2]
[408471264,1773695440835,-500.0,2.3e-05,2]
[408471265,1773695440844,-500.0,2.3e-05,2]
[408471266,1773695440854,-300.0,2.345e-05,2]
[408471267,1773695440863,-210.99361494,2.345e-05,2]
[408471277,1773695443355,-3871.1214413,2.277e-05,2]
[408471279,1773695443367,-1128.8785587,2.277e-05,2]
[408471280,1773695443377,-89.00638506,2.345e-05,2]
[408471281,1773695443387,-300.0,2.345e-05,2]
[408471282,1773695443398,-300.0,2.345e-05,2]
[408471283,1773695443409,-300.0,2.345e-05,2]
[408471284,1773695443419,-300.0,2.345e-05,2]
[408471285,1773695443428,-300.0,2.345e-05,2]
[408471286,1773695443438,-300.0,2.345e-05,2]
[408471287,1773695443447,-300.0,2.345e-05,2]
[408471288,1773695443457,-300.0,2.345e-05,2]
[408471289,1773695443467,-300.0,2.345e-05,2]
[408471290,1773695443476,-300.0,2.345e-05,2]
[408471291,1773695443485,-300.0,2.345e-05,2]
[408471292,1773695443495,-300.0,2.345e-05,2]
[408471293,1773695443504,-300.0,2.345e-05,2]
[408471294,1773695443515,-600.0,2.391e-05,2]
[408471295,1773695443524,-720.0,2.63e-05,2]
[408471296,1773695443534,-864.0,2.893e-05,2]
[408471297,1773695443544,-1000.0,3.182e-05,2]
[408471298,1773695443554,-1000.0,3.5e-05,2]
[408471299,1773695443563,-244.0,3.5e-05,2]
[408471300,1773695443572,-1000.0,3.851e-05,2]
[408471302,1773695443582,-492.0,3.851e-05,2]
[408471303,1773695443591,-1000.0,4.236e-05,2]
[408471305,1773695443602,-791.0,4.236e-05,2]
[408471306,1773695443612,-1000.0,4.659e-05,2]
[408471307,1773695443622,-1000.0,4.659e-05,2]
[408471308,1773695443636,-255.72978008,5e-05,2]
[408471309,1773695443645,-1000.0,5.125e-05,2]
[408471310,1773695443655,-1000.0,5.125e-05,2]
[408471311,1773695443664,-579.0,5.125e-05,2]
[408471312,1773695443674,-1000.0,5.638e-05,2]
[408471313,1773695443684,-1000.0,5.638e-05,2]
[408471314,1773695443694,-1000.0,5.638e-05,2]
[408471315,1773695443703,-1000.0,6.201e-05,2]
[408471316,1773695443714,-1000.0,6.201e-05,2]
[408471317,1773695443726,-1000.0,6.201e-05,2]
[408471318,1773695443736,-715.0,6.201e-05,2]
[408471319,1773695443745,-188.9891784,6.327e-05,2]
[408471320,1773695443755,-1000.0,6.821e-05,2]
[408471321,1773695443766,-1000.0,6.821e-05,2]
[408471322,1773695443776,-181.0,6.821e-05,2]
[408471323,1773695443785,-439.60334121,6.849e-05,2]
[408471324,1773695443795,-362.62643889,7.49e-05,2]
[408471325,1773695443805,-445.15608755,7.9e-05,2]
[408471326,1773695443815,-923.33583789,7.9e-05,2]
[408471327,1773695443824,-1020.46662738,7.9e-05,2]
[408471328,1773695443834,-1041.57786109,7.9e-05,2]
[408471329,1773695443845,-2150.738,7.932e-05,2]
[408471330,1773695443854,-4004.69738822,8e-05,2]
[408471331,1773695443863,-2726.61628955,8.014e-05,2]
[408471332,1773695443873,-500.0,8.073e-05,2]
[408471333,1773695443882,-201.97548971,8.073e-05,2]
[408471334,1773695443892,-3205.9687006,8.082e-05,2]
[408471335,1773695443901,-407.60686888,8.095e-05,2]
[408471336,1773695443911,-184.15143789,8.2e-05,2]
[408471337,1773695443920,-241.059762,8.2e-05,2]
[408471338,1773695443930,-253.30079519,8.2e-05,2]
[408471339,1773695443939,-259.37781208,8.2e-05,2]
[408471340,1773695443948,-762.03333735,8.299e-05,2]
[408471341,1773695443959,-561.70053842,8.299e-05,2]
[408471342,1773695443968,-2246.80215368,8.299e-05,2]
[408471343,1773695443978,-317.15301356,8.299e-05,2]
[408471344,1773695443988,-1267.34344219,8.299e-05,2]
[408471345,1773695443998,-240.36090408,8.299e-05,2]
[408471346,1773695444008,-960.4821727,8.299e-05,2]
[408471347,1773695444018,-1159.24419983,8.299e-05,2]
[408471348,1773695444028,-241.86894073,8.404e-05,2]
[408471349,1773695444037,-453.64278086,8.404e-05,2]
[408471350,1773695444047,-31683.40858107,8.405e-05,2]
[408471351,1773695444060,-28572.11232014,8.405e-05,2]
[408471360,1773695446372,-368.1946,8.405e-05,2]
[408471362,1773695446383,-2213.92499483,8.405e-05,2]
[408471364,1773695446395,-12505.88407042,8.405e-05,2]
[408471368,1773695446426,-16641.29226737,8.405e-05,2]
[408471370,1773695446437,-3008.28133464,8.405e-05,2]
[408471374,1773695446460,-2888.00825863,8.405e-05,2]
[408471389,1773695446590,-3367.4364945,8.405e-05,2]
[408471391,1773695446602,-8060.83831112,8.405e-05,2]
[408472488,1773696632357,-5000.0,6.677e-05,2]
[408472489,1773696632368,-5000.0,6.744e-05,2]
[408472491,1773696632378,-517.0,6.812e-05,2]
[408472494,1773696632389,-379.0,6.88e-05,2]
[408472497,1773696632399,-300.0,7.019e-05,2]
[408472501,1773696632410,-2318.83121203,7.077e-05,2]
[408472675,1773696641034,-423.96140522,7.006e-05,2]
[408472685,1773696645787,-1617.4713201,7.006e-05,2]
[408472686,1773696645796,-2331.08341093,7.077e-05,2]
[408472687,1773696645805,-9373.03499192,7.177e-05,2]
[408472688,1773696645815,-201.624,7.384e-05,2]
[408472689,1773696645826,-169.645659,7.384e-05,2]
[408472690,1773696645837,-11620.61366062,7.477e-05,2]
[408472691,1773696645846,-5050.24954094,7.49e-05,2]
[408472692,1773696645856,-3045.08521605,7.49e-05,2]
[408472693,1773696645865,-420.0,7.721e-05,2]
[408472694,1773696645874,-262.66942605,8e-05,2]
[408472695,1773696645883,-491.30129879,8e-05,2]
[408472696,1773696645893,-449.03071752,8e-05,2]
[408472697,1773696645902,-486.28093715,8e-05,2]
[408472698,1773696645912,-3136.867933,8.171e-05,2]
[408472699,1773696645922,-159.6157829,8.171e-05,2]
[408472700,1773696645931,-323.72141682,8.172e-05,2]
[408472701,1773696645940,-500.0,8.172e-05,2]
[408472702,1773696645950,-500.0,8.172e-05,2]
[408472703,1773696645959,-500.0,8.172e-05,2]
[408472704,1773696645968,-215.91646739,8.172e-05,2]
[408472705,1773696645978,-500.0,8.172e-05,2]
[408472706,1773696645987,-536.79834269,8.172e-05,2]
[408472707,1773696645996,-459.3976248,8.172e-05,2]
[408472708,1773696646006,-500.0,8.172e-05,2]
[408472709,1773696646015,-500.0,8.172e-05,2]
[408472710,1773696646024,-500.0,8.172e-05,2]
[408472711,1773696646034,-450.45566256,8.172e-05,2]
[408472712,1773696646043,-500.0,8.172e-05,2]
[408472713,1773696646053,-500.0,8.172e-05,2]
[408472714,1773696646063,-500.0,8.172e-05,2]
[408472715,1773696646072,-500.0,8.172e-05,2]
[408472716,1773696646081,-500.0,8.172e-05,2]
[408472717,1773696646090,-500.0,8.172e-05,2]
[408472718,1773696646099,-500.0,8.172e-05,2]
[408472719,1773696646109,-500.0,8.172e-05,2]
[408472720,1773696646119,-500.0,8.172e-05,2]
[408472721,1773696646129,-500.0,8.172e-05,2]
[408472722,1773696646140,-500.0,8.172e-05,2]
[408472723,1773696646149,-500.0,8.172e-05,2]
[408472724,1773696646159,-500.0,8.172e-05,2]
[408472725,1773696646168,-500.0,8.173e-05,2]
[408472726,1773696646177,-500.0,8.173e-05,2]
[408472727,1773696646186,-500.0,8.173e-05,2]
[408472728,1773696646196,-500.0,8.173e-05,2]
[408472729,1773696646209,-502.1031096,8.173e-05,2]
[408472730,1773696646220,-529.24799186,8.173e-05,2]
[408472731,1773696646229,-298.02451029,8.173e-05,2]
[408472732,1773696646240,-500.0,8.173e-05,2]
[408472733,1773696646249,-500.0,8.173e-05,2]
[408472734,1773696646259,-151.49422731,8.173e-05,2]
[408472735,1773696646269,-500.0,8.173e-05,2]
[408472736,1773696646279,-200.0,8.173e-05,2]
[408472737,1773696646290,-500.0,8.173e-05,2]
[408472738,1773696646300,-500.0,8.173e-05,2]
[408472739,1773696646311,-135170.5214844,8.199e-05,2]
[408472740,1773696646323,-586.64428478,8.199e-05,2]
[408472741,1773696646336,-6257.5468235,8.199e-05,2]
[408472747,1773696646801,-38810.64028138,8.199e-05,2]
[408472802,1773697832726,-619.55233372,6.697e-05,2]
[408472806,1773697832754,-1343.7500641,6.697e-05,2]
[408472808,1773697832766,-1163.20743793,6.697e-05,2]
[408472811,1773697832777,-775.95890881,6.697e-05,2]
[408472856,1773697838239,-335.91814598,6.697e-05,2]
[408472858,1773697838249,-52.53725492,6.765e-05,2]
[408472957,1773697840006,-593.06940948,6.765e-05,2]
[408473126,1773697843028,-4354.3933356,6.765e-05,2]
[408473128,1773697843038,-516.0,6.765e-05,2]
[408473130,1773697843047,-300.0,7.403e-05,2]
[408473132,1773697843059,-500.0,7.405e-05,2]
[408473134,1773697843068,-164.73,7.405e-05,2]
[408473161,1773697843307,-448.755485,7.526e-05,2]
[408473163,1773697843323,-20979.91086379,7.833e-05,2]
[408473165,1773697843333,-448.755485,7.843e-05,2]
[408473168,1773697843342,-271.89168972,7.893e-05,2]
[408473170,1773697843352,-500.0,7.893e-05,2]
[408473172,1773697843362,-500.0,7.893e-05,2]
[408473174,1773697843376,-214.33556831,7.9e-05,2]
[408473176,1773697843386,-344.44856767,7.9e-05,2]
[408473178,1773697843395,-355.95737839,7.9e-05,2]
[408473180,1773697843404,-321.3810717,7.9e-05,2]
[408473182,1773697843413,-211.705,7.9e-05,2]
[408473184,1773697843424,-448.53314919,7.911e-05,2]
[408473186,1773697843434,-40530.93837365,7.912e-05,2]
[408473425,1773697845758,-2223.52604506,7.912e-05,2]
[408473440,1773697845889,-3511.5,7.912e-05,2]
[408473824,1773699031658,-1748.84541861,6.344e-05,2]
[408473826,1773699031670,-496.286,6.344e-05,2]
[408473828,1773699031682,-388.02580248,6.344e-05,2]
[408473832,1773699031715,-2366.84277891,6.344e-05,2]
[408473834,1773699031724,-511.0,6.344e-05,2]
[408473836,1773699031734,-300.0,6.408e-05,2]
[408473837,1773699031743,-500.0,6.713e-05,2]
[408473840,1773699031753,-300.0,6.797e-05,2]
[408473841,1773699031764,-300.0,6.798e-05,2]
[408473843,1773699031774,-300.0,6.798e-05,2]
[408473845,1773699031785,-300.0,6.798e-05,2]
[408473847,1773699031795,-3383.6729805,6.8e-05,2]
[408473849,1773699031804,-500.0,7.4e-05,2]
[408473852,1773699031813,-500.0,7.4e-05,2]
[408473854,1773699031822,-420.0,7.478e-05,2]
[408473856,1773699031831,-169.364,7.558e-05,2]
[408473857,1773699031840,-371.36529012,7.6e-05,2]
[408473860,1773699031850,-733.41077201,7.6e-05,2]
[408473862,1773699031859,-819.46618247,7.6e-05,2]
[408473863,1773699031868,-806.43442498,7.6e-05,2]
[408473866,1773699031877,-500.0,7.611e-05,2]
[408473868,1773699031887,-500.0,7.611e-05,2]
[408473870,1773699031896,-23834.14357101,7.612e-05,2]
[408473946,1773699039251,-505.03060219,7.611e-05,2]
[408473947,1773699039261,-806.96939781,7.612e-05,2]
[408473948,1773699039273,-84933.98544026,7.612e-05,2]
[408473959,1773699040293,-564.22501036,7.536e-05,2]
[408473960,1773699040349,-622.5,7.536e-05,2]
[408473964,1773699043004,-3290.82508246,7.536e-05,2]
[408473965,1773699043114,-806.99127554,7.536e-05,2]
[408473974,1773699045938,-5000.0,7.461e-05,2]
[408473975,1773699045948,-10087.44369629,7.536e-05,2]
[408473978,1773699046166,-2532.55268158,7.536e-05,2]
[408473980,1773699579314,10000.0,6e-05,30]
[408474177,1773700237762,-251.74626043,5.804e-05,2]
[408474178,1773700237823,-399.97461372,5.804e-05,2]
[408474238,1773700240856,-2364.14349102,5.804e-05,2]
[408474239,1773700240871,-639.58129016,5.804e-05,2]
[408474284,1773700243318,-105.1249235,5.804e-05,2]
[408474287,1773700243330,-1239.42942117,5.804e-05,2]
[408474289,1773700243339,-651.72087415,5.863e-05,2]